Cogmind - Beta 16.1 @@@ ROGUE MODE // 2026.03.21 @ 16:28:44 Player: Ez Result: Destroyed by G-47 Trooper with Particle Gun Performance ------------- Evolutions (0) 0 Regions Visited (1) 200 Robots Destroyed (13) 65 Value Destroyed (243) 243 Prototype IDs (0) 0 Alien Tech Used (0) 0 Bonus (0) 0 TOTAL SCORE: 508 Bonus ------- None Cogmind --------- Core Integrity 0/250 Matter 278/300 Energy 100/100 System Corruption 0% Temperature Cool (9) Movement Core (350) Ox6 Location -10/Materials Parts ------- > --- POWER (1) -------- (None) > --- PROPULSION (2) --- (None) > --- UTILITY (2) ------ Large Storage Unit > --- WEAPON (2) ------- (None) > --- INVENTORY (15) --- Ion Engine Structural Scanner Peak State ------------ > --- POWER ------------ Light Nuclear Core > --- PROPULSION ------- Light Treads Light Treads > --- UTILITY ---------- Large Storage Unit > --- WEAPON ----------- Light Assault Rifle Light Assault Rifle > --- INVENTORY -------- Ion Engine Aluminum Leg Structural Scanner [Rating: 8] Favorites ----------- Power Ion Engine Engine Ion Engine Power Core Light Nuclear Core Propulsion Light Treads Treads Light Treads Utility Large Storage Unit Storage Large Storage Unit Weapon Light Assault Rifle Ballistic Gun Light Assault Rifle Build | -11 -10 ------- Run | Yrd Mat Slots Evolved . | . . Power . | . . Propulsion . | . . Utility . | . . Weapon . | . . Parts Attached 9 | 3 6 Power 2 | 1 1 Engine 1 | 1 . Core 1 | . 1 Reactor . | . . Propulsion 4 | 2 2 Treads 4 | 2 2 Leg . | . . Wheel . | . . Hover . | . . Flight . | . . Utility 1 | . 1 Device . | . . Storage 1 | . 1 Processor . | . . Hackware . | . . Protection . | . . Artifact . | . . Weapon 2 | . 2 Energy Gun . | . . Energy Cannon . | . . Ballistic Gun 2 | . 2 Ballistic Cannon . | . . Launcher . | . . Special Weapon . | . . Impact Weapon . | . . Slashing Weapon . | . . Piercing Weapon . | . . Special Melee Weapon . | . . Unidentified Prototypes . | . . Parts Lost 8 | . 8 Power 2 | . 2 Propulsion 4 | . 4 Utility . | . . Weapon 2 | . 2 Highest Loss Streak 5 | . 5 To Critical Strikes . | . . Average Backups 2 | 1 2 Power . | . . Propulsion . | . 1 Utility . | . . Weapon . | 1 . Tool/Special . | . . Unused Backups 3 | . 3 Power 1 | . 1 Propulsion 1 | . 1 Utility 1 | . 1 Weapon . | . . Tool/Special . | . . Average Slot Usage (%) 74 | . 74 Engine 10 | . 10 Core 1 | . 1 Treads 25 | . 25 Storage 9 | . 9 Ballistic Gun 26 | . 26 Peak Build Rating 8 | 3 8 Average Rating 5 | 2 5 On Entrance 1 | . 3 Avg Prop Armor Cover (%) . | . . Naked Turns . | . . Heaviest Build 27 | 5 27 Greatest Support 40 | 40 40 Greatest Overweight (x) 8 | 1 8 Average Overweight (x) . | . . Largest Inventory Capacity 15 | 5 15 Average Capacity 10 | 5 12 Most Carried 5 | 2 5 Average Carried 2 | 1 2 Final Capacity 15 | 5 15 Final Carried 2 | 2 2 Class Distribution -------------------- 100% | Mutant Dominant Class ---------------- Mutant | -10/Materials Resources | -11 -10 ----------- Run | Yrd Mat Matter Collected 343 | 230 113 Remotely . | . . Salvage Created 339 | . 339 Parts 25 | . 25 Haulers Intercepted 1 | . 1 Recyclers Shooed . | . . Parts Field Recycled . | . . Retrieved Matter . | . . Parts Self-Destructed . | . . Prevented . | . . Parts Restored . | . . Kills | -11 -10 ------- Run | Yrd Mat Combat Hostiles Destroyed 10 | . 10 Guns 10 | . 10 Classes Destroyed 4 | . 4 Hauler 1 | . 1 Watcher 2 | . 2 Swarmer 6 | . 6 Grunt 4 | . 4 Best Kill Streak 7 | . 7 Combat Bots Only 6 | . 6 Max Kills in Single Turn 2 | . 2 Gunslinging 1 | . 1 Exploded . | . . Melee . | . . Uniques/NPCs Destroyed . | . . Combat | -11 -10 -------- Run | Yrd Mat Hostile Shots Fired 120 | . 120 Missed 32 | . 32 Hits 88 | . 88 Projectile 88 | . 88 Critical Strikes 1 | . 1 Damage Taken 1075 | . 1075 Core 260 | . 260 Absorbed by Shields . | . . Core Remaining (%) 100 | 100 . Volleys Fired 63 | . 63 Largest 2 | . 2 Hottest 40 | . 40 Shots Fired 115 | . 115 Gun 115 | . 115 Cannon . | . . Launcher . | . . Special . | . . Kinetic 115 | . 115 Thermal . | . . Explosive . | . . Electromagnetic . | . . Robot Hit Streak 15 | . 15 Robot Miss Streak 4 | . 4 Penetration Max . | . . Secondary Targets 6 | . 6 Max Gunslinging Chain 1 | . 1 Shots Hit Robots 72 | . 72 Core Hits 28 | . 28 Critical Kills . | . . Critical Parts Destroyed . | . . Critical Strikes . | . . Melee Attacks . | . . Impact . | . . Slashing . | . . Piercing . | . . Sneak Attacks . | . . Combat Hostiles . | . . Follow-up Attacks . | . . Damage Inflicted 567 | . 567 Guns 567 | . 567 Cannons . | . . Explosions . | . . Melee . | . . Ramming . | . . Kinetic 567 | . 567 Thermal . | . . Explosive . | . . Electromagnetic . | . . Impact . | . . Slashing . | . . Piercing . | . . Highest Corruption . | . . Average Corruption . | . . Corruption Purged . | . . Corruption Blocked . | . . Overload Shots . | . . Overflow Damage . | . . Projectiles . | . . Explosions . | . . Melee . | . . Knockbacks . | . . Impact . | . . Kinetic . | . . Secondary . | . . Self-Inflicted Damage . | . . Shots . | . . Rammed . | . . Targets Rammed . | . . Kicked . | . . Crushed . | . . Highest Temperature 36 | . 36 Average Temperature 11 | . 11 Received Heat Transfer 585 | . 585 Siege Activations . | . . Martial Activations . | . . Shielding Activations . | . . Robots Disrupted . | . . Combat Hostiles . | . . Robots Corrupted . | . . Combat Hostiles . | . . Parts Fried . | . . Impact Corruptions . | . . Robots Melted . | . . Combat Hostiles . | . . Parts Melted . | . . Heat Transferred . | . . Parts Sabotaged . | . . Parts Stolen . | . . Parts Stripped . | . . Power Chain Reactions . | . . Alert | -11 -10 ------- Run | Yrd Mat Maximum Alert Level . | . . Low Security (%) 100 | 100 100 Level 1 . | . . Level 2 . | . . Level 3 . | . . Level 4 . | . . Level 5 . | . . High Security . | . . Max Security . | . . Peak Influence 129 | . 129 Initial . | . . Average 37 | . 44 Influence Increases 276 | . 276 Destroy 0b10 Robot/C 200 | . 200 Destroy 0b10 Robot/NC 15 | . 15 Destroy Leader 46 | . 46 Lose Combat Pursuer 15 | . 15 Influence Decreases 230 | . 230 Time Decay 150 | . 150 Lost Part 80 | . 80 Squads Dispatched 1 | . 1 Investigation . | . . Extermination . | . . Reinforcement 1 | . 1 Assault . | . . Garrison . | . . Intercept . | . . Searches Triggered . | . . Construction Impeded . | . . Haulers Reinforced . | . . Active Scanning Responses . | . . Cargo Convoy Interrupts . | . . Stealth | -11 -10 --------- Run | Yrd Mat Distress Signals 2 | . 2 Communications Jammed . | . . Distress Signals . | . . Times Spotted 20 | . 20 Peak Tracking Total 4 | . 4 Tactical Retreats 1 | . 1 Traps | -11 -10 ------- Run | Yrd Mat Traps Triggered . | . . Indirectly . | . . Trap Hack Attempts . | . . Triggered . | . . Disarmed . | . . Reprogrammed . | . . Reused . | . . Traps Extracted . | . . Installed . | . . Triggered . | . . Machines | -11 -10 ---------- Run | Yrd Mat Machines Disabled . | . . Max in Single Turn . | . . Machines Repaired . | . . Machines Dismantled . | . . Machines Sabotaged . | . . Overloaded Fab Kills . | . . Hacking | -11 -10 --------- Run | Yrd Mat Machines Accessed 1 | . 1 Terminals 1 | . 1 Fabricators . | . . Repair Stations . | . . Recycling Units . | . . Scanalyzers . | . . Garrison Access . | . . Total Hacks 1 | . 1 Successful . | . . Failed 1 | . 1 Catastrophic 1 | . 1 Database Lockouts . | . . Manual 1 | . 1 Terminals 1 | . 1 Fabricators . | . . Repair Stations . | . . Recycling Units . | . . Scanalyzers . | . . Garrison Access . | . . Terminal Hacks . | . . Fabricator Hacks . | . . Repair Station Hacks . | . . Recycling Unit Hacks . | . . Scanalyzer . | . . Garrison Access Hacks . | . . Unauthorized Hacks . | . . Terminals . | . . Fabricators . | . . Repair Stations . | . . Recycling Units . | . . Scanalyzers . | . . Garrison Access . | . . Data Cores Recovered . | . . Used . | . . Hacking Detections 1 | . 1 Full Trace Events . | . . Feedback Events . | . . Feedback Blocked . | . . Robot Schematics Acquired . | . . Robots Built . | . . Authchips . | . . Time . | . . Total Robot Build Rating . | . . Part Schematics Acquired . | . . Parts Built . | . . Authchips . | . . Time . | . . Total Part Build Rating . | . . Part Studies Acquired . | . . Parts Repaired . | . . Time . | . . Parts Recycled . | . . Recycled Matter . | . . Retrieved Matter . | . . Retrieved Components . | . . Parts Scanalyzed . | . . Part Schematics Acquired . | . . Parts Damaged . | . . Bothacking | -11 -10 ------------ Run | Yrd Mat Used RIF Installer . | . . Robots Hacked . | . . Non-combat . | . . Combat . | . . Robot Hacks Applied . | . . Relay Couplers Released . | . . Fabnet Peak Effective % . | . . Robots Rewired . | . . Allies Hacked . | . . Hacks Repelled . | . . Allies | -11 -10 -------- Run | Yrd Mat Total Allies . | . . Largest Group . | . . Highest-Rated Group . | . . Highest-Rated Ally . | . . Total Orders . | . . Ally Attacks . | . . Total Damage . | . . Kills . | . . Allies Corrupted . | . . Allies Melted . | . . Intel | -11 -10 ------- Run | Yrd Mat Active Infowar (turns) . | . . Robot Analysis Total . | . . Derelict Logs Recovered . | . . Drone Launches . | . . Drone Recoveries . | . . Exploration | -11 -10 ------------- Run | Yrd Mat Turns Passed 616 | 95 521 Spaces Moved 206 | 59 147 Core 12 | 8 4 Treads 194 | 51 143 Legs . | . . Wheels . | . . Hover . | . . Flight . | . . Fastest Speed 50 | 50 160 Average Speed 162 | 149 167 Slowest Speed 450 | 160 450 Overloaded Moves . | . . Propulsion Burnouts . | . . Robots Hopped . | . . Potential Cave-ins . | . . Cave-ins Triggered . | . . Exploration Rate (%) 19 | 4 35 Regions Visited 1 Branch Regions . Pre-discovered Areas . | . . Known Exits Taken . | . . Unknown Exits Taken 1 | 1 . Scrap Searched . | . . Spaces Dug . | . . Terrain Destroyed . | . . Melee . | . . Projectile . | . . AOE . | . . Terrain Rammed . | . . Walls Destroyed . | . . Machines Disabled . | . . Actions | -11 -10 --------- Run | Yrd Mat Total 396 | 66 330 Wait 106 | . 106 Move 205 | 58 147 Hop . | . . Pick Up 12 | 5 7 Fast Attach . | . . Attach 9 | 3 6 Detach . | . . Swap . | . . Drop 1 | . 1 Fire 63 | . 63 Melee . | . . Ram . | . . Kick . | . . Crush . | . . Escape Stasis . | . . Rewire . | . . Trap . | . . Miscellaneous . | . . Route ------- -11/Scrapyard -10/Materials (discovered 2 exits: [*Min x2]) History --------- Turn | Location | Event 9 | -11/Scrapyard | Discovered new exit (range 16) 96 | -11/Scrapyard | Entered Materials 98 | -10/Materials | Discovered new exit (range 8) 309 | -10/Materials | Build established: Mutant 385 | -10/Materials | Discovered new exit (range 14) 526 | -10/Materials | Lost 3 parts (1p2n) 588 | -10/Materials | Core integrity fell below 50% 612 | -10/Materials | Core integrity fell below 20% 617 | -10/Materials | Destroyed by G-47 Trooper with Particle Gun Last Messages --------------- R-06 Scavenger collects Sml. Laser. R-06 Scavenger collects Flight Unit. R-06 Scavenger collects Lgt. Assault Rifle. K-01 Serf collects debris. U-05 Engineer works on Material Compactor. K-01 Serf collects debris. U-05 Engineer works on Material Compactor. Lgt. Assault Rifle destroyed. U-05 Engineer works on Material Compactor. K-01 Serf collects debris. U-05 Engineer works on Material Compactor. Lgt. Assault Rifle destroyed. Lgt. Treads destroyed. U-05 Engineer completes Material Compactor. Lgt. Nuclear Core destroyed. K-01 Serf collects debris. Material Compactor comes online. K-01 Serf cleans the Material Compactor. Lgt. Treads destroyed. K-01 Serf cleans the Material Compactor. Map ----- +----------------------------------------------------+ | ????????????"" ?# #??????????????? | | ???????????""" # #??????????????? | | ???????????""" # #??????????????? | | ?????????? # %"T"= #??????????????? | | ?????????? # ! ! #??????????????? | | ??????????####### != % %*#??????????????? | | ????????????#######+##########%####??????????????? | | ????????????# ! #??# #?????????????????? | | ????????????# #??#[#?????????????????? | | ????????????# """ #??#!#?????????????????? | | ????????????# =]] """ #??#%#?????????????????? | | ????????????# =]] """ #??#=#?????????????????? | | ????????????# ]]] #??#%#?????????????????? | | ????????????##################%######## ?? | | ???????????+## ##### = % ?? | | ???????? *[% ?? | | ???????? < "T" ##????? | | ???????? #?????? | | ???????? ## ##### #?????? | | ?????????????# "|"!"?????## #?????? | | ?????????????#""|"!???????# #?????? | | ??????????????###?????????# #?????? | | ??????????????????????????# #?????? | | ????????????????########### #?????? | | ????????????????# """ # """"""" #?????? | | ????????????????# """""@# """"""" #?????? | | ?????????????????? """""gg """"""" ???????? | | ????????????????# """""g# """"""?? ?????????? | | ????????????????? """k # """""???????????????? | | ????????????????# | # ???????????????? | | ????????????????# # ??????????????? | | ????????????????# # ?????????????? | | ????????????????########### ????????????? | | ??????????????????????????# ????????????? | | ??????????????????????????# ????????????? | | ???????????????????????????###########???????????? | | ?????????????????????????????????????????????????? | | ?????????????????????????????????????????????????? | | ?????????????????????????????????????????????????? | | ?????????????????????????????????????????????????? | | ?????????????????????????????????????????????????? | | ?????????????????????????????????????????????????? | | ?????????????????????????????????????????????????? | | ?????????????????????????????????????????????????? | | ?????????????????????????????????????????????????? | | ?????????????????????????????????????????????????? | | ?????????????????????????????????????????????????? | | ?????????????????????????????????????????????????? | | ?????????????????????????????????????????????????? | | ?????????????????????????????????????????????????? | +----------------------------------------------------+ Best States ------------- Heat Dissipation 25 Energy Generation 14 Energy Capacity 250 Matter Stores 300 Matter Capacity 300 Sight Range 16 Terrain Scan Density 10 Evasion (%) 40 Recoil Reduction 2 Item Schematics ----------------- None Robot Schematics ------------------ None Fabricated ------------ Nothing Repaired ---------- Nothing Studied --------- None Alien Tech Used ----------------- None Achievements -------------- None Challenges ------------ None Game ------ Seed ProcessingAutogunAirjet Manual? 0 Play Time 00:08:14 Cumulative 28.8 hours Start 2026.03.21 @ 16:15:12 End 2026.03.21 @ 16:28:44 Sessions 1 Manual Loads 0 Difficulty Rogue Special Mode None Game No. 80 Rogue 78 Adventurer 2 Explorer 0 Win Type - Total 0 Types 0/0/0/0/0/0/0/0/0/0 Lore% 7 Gallery% 19 Achievement% 16 Wizard Run 0 Options --------- Layout 1 ASCII 0 Keyboard 0 Movement Mouse Keybinds 0 Fullscreen 2 Font 32/SmallcapsGlow Map View 50x35 Zoom Use 0% Tactical HUD 0 Map Filters NONE Filters NONE Steam 1 RUN: e10752e7-731f-4c69-a509-a3c9d9471de0